lending/lending_fUSD_20260310
["ID","MTS","AMOUNT","RATE_DAILY","PERIOD"]
[408152022,1773181832113,-790.02021455,0.00014179,2]
[408152023,1773181832122,-790.02021455,0.00014179,2]
[408152024,1773181832131,-790.02021455,0.00014179,2]
[408152026,1773181832141,-790.02021455,0.00014179,2]
[408152028,1773181832150,-790.02021455,0.00014179,2]
[408152030,1773181832159,-790.02021455,0.00014179,2]
[408152032,1773181832168,-790.02021455,0.00014179,2]
[408152034,1773181832177,-790.02021455,0.00014179,2]
[408152036,1773181832186,-790.02021455,0.00014179,2]
[408152038,1773181832196,-790.02021455,0.00014179,2]
[408152040,1773181832205,-1066.449653,0.0001418,5]
[408152042,1773181832214,-1066.449653,0.0001418,5]
[408152044,1773181832223,-500.0,0.0001418,5]
[408152046,1773181832232,-506.3,0.0001418,2]
[408152048,1773181832242,-506.3,0.0001418,2]
[408152050,1773181832251,-506.3,0.0001418,2]
[408152052,1773181832261,-506.3,0.0001418,2]
[408152053,1773181832272,-506.3,0.0001418,2]
[408152054,1773181832282,-506.3,0.0001418,2]
[408152055,1773181832292,-506.3,0.0001418,2]
[408152056,1773181832302,-506.3,0.0001418,2]
[408152057,1773181832311,-506.3,0.0001418,2]
[408152058,1773181832321,-506.3,0.0001418,2]
[408152059,1773181832331,-500.0,0.0001418,2]
[408152060,1773181832340,-500.0,0.0001418,2]
[408152061,1773181832349,-500.0,0.0001418,2]
[408152062,1773181832359,-500.0,0.0001418,2]
[408152063,1773181832368,-500.0,0.0001418,2]
[408152064,1773181832377,-500.0,0.0001418,2]
[408152065,1773181832387,-500.0,0.0001418,2]
[408152066,1773181832397,-500.0,0.0001418,2]
[408152067,1773181832406,-491.94249388,0.0001418,2]
[408152068,1773181832416,-500.0,0.0001418,2]
[408152069,1773181832426,-500.0,0.0001418,2]
[408152070,1773181832435,-500.0,0.0001418,2]
[408152071,1773181832445,-302.61,0.0001418,2]
[408152072,1773181832454,-500.0,0.0001418,2]
[408152073,1773181832464,-500.0,0.0001418,2]
[408152074,1773181832474,-500.0,0.0001418,2]
[408152075,1773181832483,-504.92020981,0.0001418,2]
[408152076,1773181832493,-500.0,0.0001418,2]
[408152077,1773181832502,-500.0,0.0001418,2]
[408152078,1773181832511,-500.0,0.0001418,2]
[408152079,1773181832520,-500.0,0.0001418,2]
[408152080,1773181832529,-595.06336316,0.0001418,2]
[408152081,1773181832538,-500.0,0.0001418,2]
[408152082,1773181832547,-500.0,0.0001418,2]
[408152083,1773181832557,-500.0,0.0001418,2]
[408152084,1773181832566,-500.0,0.0001418,2]
[408152085,1773181832575,-500.0,0.0001418,2]
[408152086,1773181832584,-500.0,0.0001418,2]
[408152087,1773181832593,-500.0,0.0001418,2]
[408152088,1773181832603,-500.0,0.0001418,2]
[408152089,1773181832613,-500.0,0.0001418,2]
[408152090,1773181832623,-500.0,0.0001418,2]
[408152091,1773181832632,-500.0,0.0001418,2]
[408152092,1773181832641,-500.0,0.0001418,2]
[408152093,1773181832650,-500.0,0.0001418,2]
[408152094,1773181832659,-500.0,0.0001418,2]
[408152095,1773181832668,-500.0,0.0001418,2]
[408152096,1773181832677,-500.0,0.0001418,2]
[408152097,1773181832687,-500.0,0.0001418,2]
[408152098,1773181832696,-500.0,0.0001418,2]
[408152099,1773181832706,-536.80884023,0.0001418,2]
[408152100,1773181832715,-500.0,0.0001418,2]
[408152101,1773181832724,-500.0,0.0001418,2]
[408152102,1773181832733,-500.0,0.0001418,2]
[408152103,1773181832743,-500.0,0.0001418,2]
[408152104,1773181832754,-3879.672,0.0001418,2]
[408152105,1773181832763,-172.244,0.0001418,2]
[408152106,1773181832772,-500.0,0.0001418,2]
[408152107,1773181832781,-500.0,0.0001418,2]
[408152108,1773181832791,-500.0,0.0001418,2]
[408152109,1773181832801,-500.0,0.0001418,2]
[408152110,1773181832811,-500.0,0.0001418,2]
[408152111,1773181832822,-500.0,0.0001418,2]
[408152112,1773181832832,-507.21393636,0.0001418,2]
[408152113,1773181832841,-500.0,0.0001418,2]
[408152114,1773181832851,-500.0,0.0001418,2]
[408152115,1773181832861,-500.0,0.0001418,2]
[408152116,1773181832870,-500.0,0.0001418,2]
[408152117,1773181832879,-500.0,0.0001418,2]
[408152118,1773181832889,-630.81055911,0.0001418,2]
[408152119,1773181832899,-500.0,0.0001418,2]
[408152120,1773181832909,-500.0,0.0001418,2]
[408152121,1773181832919,-500.0,0.0001418,2]
[408152122,1773181832929,-500.0,0.0001418,2]
[408152123,1773181832940,-514.59328836,0.0001418,2]
[408152124,1773181832950,-500.0,0.0001418,2]
[408152125,1773181832959,-500.0,0.0001418,2]
[408152126,1773181832968,-500.0,0.0001418,2]
[408152127,1773181832977,-500.0,0.0001418,2]
[408152128,1773181832987,-500.0,0.0001418,2]
[408152129,1773181832996,-150.99,0.0001418,2]
[408152130,1773181833005,-299.99,0.0001418,2]
[408152131,1773181833014,-5333.1,0.0001418,2]
[408152132,1773181833026,-9999.99,0.0001418,2]
[408152133,1773181833036,-2910.52,0.0001418,2]
[408152134,1773181833045,-9443.82511747,0.0001418,2]
[408152135,1773181833058,-556.16488253,0.0001418,2]
[408152136,1773181833069,-500.0,0.0001418,2]
[408152137,1773181833079,-514.19444451,0.0001418,2]
[408152138,1773181833089,-150.99,0.0001418,2]
[408152139,1773181833101,-204.00372193,0.0001418,5]
[408152140,1773181833110,-1095.49569653,0.0001418,5]
[408152141,1773181833120,-918.56,0.0001418,2]
[408152142,1773181833129,-500.0,0.0001418,2]
[408152143,1773181833138,-500.0,0.0001418,2]
[408152144,1773181833148,-500.0,0.0001418,2]
[408152145,1773181833158,-500.0,0.0001418,2]
[408152146,1773181833167,-500.0,0.0001418,2]
[408152147,1773181833176,-500.0,0.0001418,2]
[408152148,1773181833186,-500.0,0.0001418,2]
[408152149,1773181833196,-500.0,0.0001418,2]
[408152150,1773181833206,-500.0,0.0001418,2]
[408152151,1773181833215,-500.0,0.0001418,2]
[408152152,1773181833225,-500.0,0.0001418,2]
[408152153,1773181833234,-500.0,0.0001418,2]
[408152154,1773181833243,-500.0,0.0001418,2]
[408152155,1773181833253,-500.0,0.0001418,2]
[408152156,1773181833262,-500.0,0.0001418,2]
[408152157,1773181833272,-500.0,0.0001418,2]
[408152158,1773181833281,-500.0,0.0001418,2]
[408152159,1773181833291,-500.0,0.0001418,2]
[408152160,1773181833301,-522.2,0.0001418,2]
[408152161,1773181833310,-500.0,0.0001418,2]
[408152162,1773181833319,-500.0,0.0001418,2]
[408152163,1773181833329,-500.0,0.0001418,2]
[408152164,1773181833338,-500.0,0.0001418,2]
[408152165,1773181833347,-500.0,0.0001418,2]
[408152166,1773181833356,-500.0,0.0001418,2]
[408152167,1773181833366,-500.0,0.0001418,2]
[408152168,1773181833376,-500.0,0.0001418,2]
[408152169,1773181833385,-500.0,0.0001418,2]
[408152170,1773181833394,-280.34011831,0.0001418,2]
[408152171,1773181833404,-500.0,0.0001418,2]
[408152172,1773181833414,-500.0,0.0001418,2]
[408152173,1773181833423,-500.0,0.0001418,2]
[408152174,1773181833432,-500.0,0.0001418,2]
[408152175,1773181833442,-500.0,0.0001418,2]
[408152176,1773181833451,-500.0,0.0001418,2]
[408152177,1773181833461,-500.0,0.0001418,2]
[408152178,1773181833470,-500.0,0.0001418,2]
[408152179,1773181833479,-500.0,0.0001418,2]
[408152180,1773181833488,-500.0,0.0001418,2]
[408152181,1773181833498,-500.0,0.0001418,2]
[408152182,1773181833507,-500.0,0.0001418,2]
[408152183,1773181833517,-500.0,0.0001418,2]
[408152184,1773181833527,-206.0086696,0.0001418,2]
[408152185,1773181833537,-500.0,0.0001418,2]
[408152186,1773181833546,-478.41792655,0.0001418,2]
[408152187,1773181833555,-500.0,0.0001418,2]
[408152188,1773181833564,-500.0,0.0001418,2]
[408152189,1773181833574,-500.0,0.0001418,2]
[408152190,1773181833583,-500.0,0.0001418,2]
[408152191,1773181833593,-500.0,0.0001418,2]
[408152192,1773181833603,-284.71772564,0.0001418,2]
[408152193,1773181833612,-500.0,0.0001418,2]
[408152194,1773181833622,-500.0,0.0001418,2]
[408152195,1773181833631,-500.0,0.0001418,2]
[408152196,1773181833640,-500.0,0.0001418,2]
[408152197,1773181833649,-500.0,0.0001418,2]
[408152198,1773181833658,-237.5261536,0.0001418,2]
[408152199,1773181833667,-500.0,0.0001418,2]
[408152200,1773181833677,-610.75076466,0.0001418,2]
[408152201,1773181833686,-488.86064809,0.0001418,2]
[408152202,1773181833696,-15307.93562301,0.00014269,2]
[408152203,1773181833705,-240.48342398,0.00014269,2]
[408152204,1773181833715,-150.0,0.00014369,2]
[408152205,1773181833724,-150.0,0.00014369,2]
[408152206,1773181833733,-500.0,0.00014369,2]
[408152207,1773181833743,-500.0,0.00014369,2]
[408152208,1773181833753,-500.0,0.00014369,2]
[408152209,1773181833763,-500.0,0.00014394,2]
[408152210,1773181833773,-507.41,0.00014394,2]
[408152211,1773181833782,-500.0,0.00014394,2]
[408152212,1773181833791,-500.0,0.00014394,2]
[408152213,1773181833801,-5533.0,0.000144,5]
[408152214,1773181833810,-110.66932031,0.00014424,2]
[408152215,1773181833823,-39.33067969,0.00014424,2]
[408152216,1773181833832,-500.0,0.00014424,2]
[408152217,1773181833841,-500.0,0.00014424,2]
[408152218,1773181833851,-552.49408871,0.00014424,2]
[408152219,1773181833860,-500.0,0.00014454,5]
[408152220,1773181833869,-918.56,0.00014454,2]
[408152221,1773181833879,-150.0,0.00014479,2]
[408152222,1773181833888,-500.0,0.00014479,2]
[408152223,1773181833897,-323.65373692,0.00014479,2]
[408152224,1773181833906,-916.0,0.000145,2]
[408152225,1773181833916,-610.0,0.00014508,2]
[408152226,1773181833925,-2055.95,0.00014511,2]
[408152227,1773181833935,-263.0,0.00014516,2]
[408152228,1773181833944,-150.0,0.00014533,2]
[408152229,1773181833953,-500.0,0.00014533,2]
[408152230,1773181833964,-150.0,0.00014588,2]
[408152231,1773181833973,-500.0,0.00014588,2]
[408152232,1773181833982,-1435.0,0.00014602,2]
[408152233,1773181833992,-12744.82246712,0.00014619,2]
[408152234,1773181834002,-500.0,0.00014643,2]
[408152235,1773181834011,-995.59210806,0.00014658,2]
[408152236,1773181834023,-2537.80901449,0.00014658,2]
[408152237,1773181834032,-1243.80019483,0.00014658,2]
[408152238,1773181834042,-3171.25090155,0.00014658,2]
[408152239,1773181834051,-3103.31080671,0.00014658,2]
[408152240,1773181834062,-2857.99153863,0.00014658,2]
[408152241,1773181834072,-794.34581327,0.00014658,2]
[408152242,1773181834081,-837.95144073,0.00014658,2]
[408152243,1773181834090,-2313.96932046,0.00014658,2]
[408152244,1773181834101,-1915.63703689,0.00014658,2]
[408152245,1773181834112,-506.3,0.00014672,2]
[408152246,1773181834121,-500.0,0.00014672,2]
[408152247,1773181834130,-500.0,0.00014672,2]
[408152248,1773181834139,-270.67,0.00014696,2]
[408152249,1773181834148,-500.0,0.00014698,2]
[408152250,1773181834158,-500.0,0.00014698,2]
[408152251,1773181834167,-500.0,0.00014698,2]
[408152252,1773181834176,-500.0,0.00014698,2]
[408152253,1773181834186,-500.0,0.00014698,2]
[408152254,1773181834195,-500.0,0.00014698,2]
[408152255,1773181834204,-500.0,0.00014698,2]
[408152256,1773181834213,-500.0,0.00014698,2]
[408152257,1773181834223,-500.0,0.00014698,2]
[408152258,1773181834232,-500.0,0.00014698,2]
[408152259,1773181834242,-500.0,0.00014698,2]
[408152260,1773181834251,-326.84417563,0.00014698,2]
[408152261,1773181834260,-507.41,0.00014698,2]
[408152262,1773181834270,-507.41,0.00014698,2]
[408152263,1773181834279,-507.41,0.00014698,2]
[408152264,1773181834288,-507.41,0.00014698,2]
[408152265,1773181834298,-507.41,0.00014698,2]
[408152266,1773181834307,-507.41,0.00014698,2]
[408152267,1773181834316,-507.41,0.00014698,2]
[408152268,1773181834325,-507.41,0.00014698,2]
[408152269,1773181834335,-507.41,0.00014698,2]
[408152270,1773181834344,-507.41,0.00014698,2]
[408152271,1773181834353,-507.41,0.00014698,2]
[408152272,1773181834363,-500.0,0.00014698,2]
[408152273,1773181834373,-500.0,0.00014698,2]
[408152274,1773181834382,-500.0,0.00014698,2]
[408152275,1773181834392,-500.0,0.00014698,2]
[408152276,1773181834401,-500.0,0.00014698,2]
[408152277,1773181834411,-500.0,0.00014698,2]
[408152278,1773181834421,-500.0,0.00014698,2]
[408152279,1773181834431,-500.0,0.00014698,2]
[408152280,1773181834440,-500.0,0.00014698,2]
[408152281,1773181834449,-500.0,0.00014698,2]
[408152282,1773181834458,-500.0,0.00014698,2]
[408152283,1773181834467,-500.0,0.00014698,2]
[408152284,1773181834476,-500.0,0.00014698,2]
[408152285,1773181834486,-500.0,0.00014698,2]
[408152286,1773181834496,-500.0,0.00014698,2]
[408152287,1773181834505,-500.0,0.00014698,2]
[408152288,1773181834514,-527.18458678,0.00014698,2]
[408152289,1773181834524,-175.0,0.00014725,2]
[408152290,1773181834533,-500.0,0.00014728,5]
[408152291,1773181834542,-918.56,0.00014728,2]
[408152292,1773181834552,-346.46936844,0.00014753,2]
[408152293,1773181834561,-372.41789449,0.00014757,2]
[408152294,1773181835076,-2031.69358579,0.00014757,2]
[408152295,1773181835266,-637.11558668,0.00014757,2]
[408152296,1773181835277,-458.44747329,0.00014757,2]
[408152297,1773181835289,-73.84138715,0.00014757,2]
[408152298,1773181835299,-341.75861285,0.00014806,2]
[408152299,1773181835475,-5209.21457387,0.00014806,2]
[408152300,1773181835486,-2055.95,0.00014857,2]
[408152301,1773181835496,-8206.09597087,0.00014895,2]
[408152302,1773181835508,-4375.8559646,0.00014895,2]
[408152312,1773181837483,-500.0,0.0001418,2]
[408152313,1773181837493,-500.0,0.0001418,2]
[408152314,1773181837503,-1e-06,0.0001418,2]
[408152315,1773181837514,-327.51077293,0.0001418,2]
[408152316,1773181837526,-172.48922607,0.0001418,2]
[408152317,1773181837536,-500.0,0.0001418,2]
[408152318,1773181837547,-500.0,0.0001418,2]
[408152319,1773181837557,-500.0,0.0001418,2]
[408152320,1773181837566,-500.0,0.0001418,2]
[408152321,1773181837576,-417.46148844,0.0001418,2]
[408152322,1773181837588,-82.53851156,0.0001418,2]
[408152323,1773181837598,-500.0,0.0001418,2]
[408152324,1773181837609,-2725.98368749,0.00014895,2]
[408152325,1773181837619,-171.92037,0.000149,2]
[408152326,1773181837629,-171.92036999,0.000149,2]
[408152327,1773181837638,-4117.16905456,0.00014929,2]
[408152328,1773181837647,-250.0,0.00015,2]
[408152329,1773181837656,-500.0,0.00015,30]
[408152330,1773181837666,-500.0,0.00015,30]
[408152331,1773181837675,-500.0,0.00015,30]
[408152332,1773181837685,-500.0,0.00015,30]
[408152333,1773181837695,-500.0,0.00015,30]
[408152334,1773181837704,-500.0,0.00015,30]
[408152335,1773181837713,-500.0,0.00015,30]
[408152336,1773181837723,-500.0,0.00015,30]
[408152337,1773181837733,-884.80384665,0.00015,30]
[408152338,1773181837743,-500.0,0.00015,30]
[408152339,1773181837752,-500.0,0.00015,30]
[408152340,1773181837763,-728.06401281,0.00015,30]
[408152341,1773181837772,-500.0,0.00015,30]
[408152342,1773181837782,-500.0,0.00015,30]
[408152343,1773181837791,-500.0,0.00015,30]
[408152344,1773181837802,-500.0,0.00015,30]
[408152345,1773181837811,-500.0,0.00015,30]
[408152346,1773181837821,-500.0,0.00015,30]
[408152347,1773181837830,-500.0,0.00015,30]
[408152348,1773181837840,-500.0,0.00015,30]
[408152349,1773181837849,-500.0,0.00015,30]
[408152351,1773181837858,-374.13588265,0.00015,30]
[408152352,1773181837870,-125.86411735,0.00015,30]
[408152353,1773181837879,-500.0,0.00015,30]
[408152354,1773181837889,-500.0,0.00015,30]
[408152355,1773181837898,-500.0,0.00015,30]
[408152356,1773181837908,-374.13588265,0.00015,30]
[408152357,1773181837923,-125.86411735,0.00015,30]
[408152358,1773181837932,-500.0,0.00015,30]
[408152359,1773181837941,-75.87831166,0.00015,30]
[408152360,1773181837952,-424.12168834,0.00015,30]
[408152361,1773181837962,-500.0,0.00015,30]
[408152362,1773181837971,-974.75005335,0.00015,30]
[408152363,1773181837979,-500.2636592,0.00015,30]
[408152364,1773181837989,-500.0,0.00015,30]
[408152365,1773181837998,-410.86459911,0.00015,30]
[408152366,1773181838009,-89.13540089,0.00015,30]
[408152367,1773181838018,-437.36804045,0.00015,30]
[408152368,1773181838046,-500.0,0.0001418,2]
[408152369,1773181838056,-62.63195955,0.00015,30]
[408152370,1773181838067,-500.0,0.00015,30]
[408152371,1773181838076,-500.0,0.00015,30]
[408152372,1773181838085,-500.0,0.00015,30]
[408152373,1773181838094,-770.82600181,0.00015,30]
[408152374,1773181838105,-500.0,0.00015,30]
[408152375,1773181838115,-500.0,0.00015,30]
[408152376,1773181838124,-500.0,0.00015,30]
[408152377,1773181838134,-500.0,0.00015,30]
[408152378,1773181838143,-500.0,0.00015,30]
[408152379,1773181838152,-500.0,0.00015,30]
[408152380,1773181838161,-500.0,0.00015002,5]
[408152381,1773181838171,-918.56,0.00015002,2]
[408152382,1773181838180,-151.0,0.00015009,2]
[408152383,1773181838189,-2055.95,0.00015202,2]
[408152384,1773181838198,-500.0,0.00015276,5]
[408152385,1773181838208,-918.56,0.00015276,2]
[408152386,1773181838217,-255.0,0.00015299,2]
[408152387,1773181838227,-288.52,0.00015341,2]
[408152388,1773181838236,-889.15,0.00015372,2]
[408152389,1773181838246,-5550.97318672,0.00015443,2]
[408152390,1773181838256,-270.67,0.00015469,2]
[408152391,1773181838265,-420.0,0.00015517,2]
[408152392,1773181838275,-210.0,0.00015518,2]
[408152393,1773181838284,-420.0,0.00015518,2]
[408152394,1773181838294,-300.0,0.00015518,2]
[408152395,1773181838303,-15307.93562296,0.0001552,2]
[408152396,1773181838312,-507.41,0.00015525,2]
[408152397,1773181838322,-500.0,0.00015525,2]
[408152398,1773181838332,-2000.0,0.00015538,2]
[408152399,1773181838342,-500.0,0.0001555,5]
[408152400,1773181838351,-918.56,0.0001555,2]
[408152401,1773181838361,-170.962384,0.00015565,2]
[408152402,1773181838371,-250.0,0.00015574,2]
[408152403,1773181838380,-193.0,0.00015574,2]
[408152404,1773181838389,-250.0,0.00015582,2]
[408152405,1773181838398,-500.0,0.00015582,2]
[408152406,1773181838408,-300.0,0.00015582,2]
[408152407,1773181838418,-5000.0,0.00015582,2]
[408152408,1773181838427,-5000.0,0.00015582,2]
[408152409,1773181838436,-367.1844389,0.00015582,2]
[408152410,1773181838445,-250.0,0.00015582,2]
[408152411,1773181838455,-600.0,0.00015582,2]
[408152412,1773181838464,-300.0,0.00015582,2]
[408152413,1773181838473,-1680.0,0.00015583,2]
[408152414,1773181838482,-1600.0,0.00015627,2]
[408152415,1773181838491,-4117.16905456,0.00015757,2]
[408152416,1773181838501,-178.66,0.00015818,2]
[408152417,1773181838510,-622.62914275,0.00015824,5]
[408152418,1773181838520,-918.56,0.00015824,2]
[408152419,1773181838530,-36.08820885,0.00016,5]
[408152420,1773181838557,-246.61263609,0.00016,5]
[408152421,1773181838566,-2950.03767585,0.00016079,2]
[408152422,1773181838577,-2600.93551087,0.00016079,2]
[408152423,1773181838586,-918.56,0.00016098,2]
[408152424,1773181838596,-7995.06,0.00016116,2]
[408152425,1773181838604,-2798.92,0.00016116,2]
[408152426,1773181838614,-2709.89,0.00016116,2]
[408152427,1773181838624,-15307.93562296,0.00016146,2]
[408152428,1773181838634,-350.0,0.00016164,2]
[408152429,1773181838644,-350.0,0.00016164,2]
[408152430,1773181838653,-303.80696665,0.00016164,2]
[408152431,1773181838663,-270.67,0.00016243,2]
[408152432,1773181838672,-918.56,0.00016372,2]
[408152433,1773181838682,-510.25,0.00016438,2]
[408152434,1773181838691,-510.25,0.00016438,2]
[408152435,1773181838700,-510.25,0.00016438,2]
[408152436,1773181838709,-510.25,0.00016438,2]
[408152437,1773181838719,-510.25,0.00016438,2]
[408152438,1773181838728,-510.25,0.00016438,2]
[408152439,1773181838737,-510.25,0.00016438,2]
[408152440,1773181838747,-510.25,0.00016438,2]
[408152441,1773181838756,-510.25,0.00016438,2]
[408152442,1773181838765,-510.25,0.00016438,2]
[408152443,1773181838775,-510.25,0.00016438,2]
[408152444,1773181838783,-200.0,0.00016438,2]
[408152445,1773181838792,-433.0,0.00016504,2]
[408152446,1773181838802,-4117.16905456,0.00016586,2]
[408152447,1773181838812,-918.56,0.00016646,2]
[408152448,1773181838821,-1000.0,0.00016673,2]
[408152449,1773181838830,-5550.97318672,0.00016716,2]
[408152450,1773181838839,-15307.93562296,0.00016772,2]
[408152451,1773181838848,-507.41,0.00016864,2]
[408152452,1773181838858,-500.0,0.00016864,2]
[408152453,1773181838867,-918.56,0.0001692,2]
[408152454,1773181838876,-587.0,0.00016997,2]
[408152455,1773181838885,-587.0,0.00016998,2]
[408152456,1773181838894,-507.41,0.00016999,2]
[408152457,1773181838903,-507.41,0.00016999,2]
[408152458,1773181838912,-500.0,0.00016999,2]
[408152459,1773181838922,-500.0,0.00016999,2]
[408152460,1773181838931,-300.0,0.00017,2]
[408152461,1773181838940,-500.0,0.00017,2]
[408152462,1773181838949,-270.67,0.00017016,2]
[408152463,1773181838959,-240.48342397,0.00017085,2]
[408152464,1773181838968,-507.41,0.00017099,2]
[408152465,1773181838977,-500.0,0.00017099,2]
[408152466,1773181838986,-2351.0,0.00017141,2]
[408152467,1773181838995,-918.60410102,0.00017194,2]
[408152468,1773181839005,-3573.51592739,0.00017329,2]
[408152469,1773181839020,-5550.97318672,0.00017353,2]
[408152470,1773181839031,-1600.0,0.00017363,2]
[408152471,1773181839040,-15307.93562296,0.00017397,2]
[408152472,1773181839049,-4117.16905456,0.00017414,2]
[408152473,1773181839059,-150.0,0.0001747,2]
[408152474,1773181839069,-2000.0,0.0001748,2]
[408152475,1773181839078,-500.0,0.00017753,2]
[408152476,1773181839087,-270.67,0.0001779,2]
[408152477,1773181839099,-200.76649827,0.00017808,2]
[408152478,1773181839108,-800.0,0.00017808,2]
[408152479,1773181839117,-736.0,0.00017809,2]
[408152480,1773181839126,-257.87725905,0.000179,2]
[408152481,1773181839135,-257.87725905,0.000179,2]
[408152482,1773181839145,-5550.97318672,0.0001799,2]
[408152483,1773181839155,-15307.93562296,0.00018023,2]
[408152484,1773181839164,-507.41,0.00018196,2]
[408152485,1773181839174,-500.0,0.00018196,2]
[408152486,1773181839184,-500.0,0.00018286,3]
[408152487,1773181839194,-178.66,0.00018342,2]
[408152488,1773181839203,-2806.0,0.000184,2]
[408152489,1773181839212,-270.67,0.00018563,2]
[408152490,1773181839222,-240.0,0.00018618,2]
[408152491,1773181839231,-823.0,0.00018619,2]
[408152492,1773181839240,-5550.97318672,0.00018626,2]
[408152493,1773181839249,-15307.93562296,0.00018649,2]
[408152494,1773181839259,-250.0,0.00018707,2]
[408152495,1773181839268,-165.24,0.00018782,2]
[408152496,1773181839277,-1815.03,0.00018822,2]
[408152497,1773181839286,-496.32051683,0.00018836,2]
[408152498,1773181839295,-3292.0,0.00018855,2]
[408152499,1773181839305,-168.0,0.0001886,2]
[408152500,1773181839314,-284.85240697,0.00018868,2]
[408152501,1773181839323,-172.91703981,0.0001889,2]
[408152502,1773181839332,-160.0,0.0001889,2]
[408152503,1773181839341,-2800.0,0.000189,6]
[408152504,1773181839351,-424.139,0.00018999,2]
[408152505,1773181839360,-250.0,0.00018999,2]
[408152506,1773181839369,-187.88530125,0.00018999,2]
[408152507,1773181839379,-670.58624095,0.00018999,2]
[408152508,1773181839388,-1328.27659266,0.00018999,2]
[408152509,1773181839397,-500.0,0.00018999,2]
[408152510,1773181839406,-500.0,0.00018999,2]
[408152511,1773181839416,-626.54460475,0.00018999,2]
[408152512,1773181839425,-1500.0,0.00018999,2]
[408152513,1773181839435,-1500.0,0.00018999,2]
[408152514,1773181839444,-1500.0,0.00018999,2]
[408152515,1773181839454,-1500.0,0.00018999,2]
[408152516,1773181839463,-1500.0,0.00018999,2]
[408152517,1773181839473,-1500.0,0.00018999,2]
[408152518,1773181839482,-1500.0,0.00018999,2]
[408152519,1773181839491,-1500.0,0.00018999,2]
[408152520,1773181839501,-1500.0,0.00018999,2]
[408152521,1773181839510,-3000.0,0.00018999,2]
[408152522,1773181839522,-1500.0,0.00018999,2]
[408152523,1773181839531,-3000.0,0.00018999,2]
[408152524,1773181839540,-1500.0,0.00018999,2]
[408152525,1773181839549,-3000.0,0.00018999,2]
[408152526,1773181839558,-1500.0,0.00018999,2]
[408152527,1773181839567,-3000.0,0.00018999,2]
[408152528,1773181839577,-1500.0,0.00018999,2]
[408152529,1773181839588,-250.0,0.00018999,2]
[408152530,1773181839602,-1500.0,0.00018999,2]
[408152531,1773181839612,-3000.0,0.00018999,2]
[408152532,1773181839622,-1506.77280813,0.00018999,2]
[408152533,1773181839630,-3000.0,0.00018999,2]
[408152534,1773181839640,-3000.0,0.00018999,2]
[408152535,1773181839650,-3000.0,0.00018999,2]
[408152537,1773181839659,-3000.0,0.00018999,2]
[408152538,1773181839669,-3000.0,0.00018999,2]
[408152539,1773181839678,-3000.0,0.00018999,2]
[408152540,1773181839687,-200.0,0.00018999,2]
[408152543,1773181839696,-3000.0,0.00018999,2]
[408152544,1773181839705,-3000.0,0.00018999,2]
[408152546,1773181839714,-500.0,0.00018999,2]
[408152548,1773181839723,-151.0,0.00018999,2]
[408152549,1773181839733,-174.61919141,0.00018999,2]
[408152550,1773181839742,-1000.0,0.00018999,2]